bitfinex/quotes_SOLUSD_20251218
["timestamp","ask_amount","ask_price","bid_price","bid_amount"]
[1766072281531,19.38218398,128.99,128.89,0.77585538]
[1766072281532,6.43847619,128.99,128.89,0.77585538]
[1766072281831,7.13847619,128.97,128.9,6.43847619]
[1766072282038,0.7,128.96,128.9,14.91847619]
[1766072282216,0.7,128.95,128.89,6.43847619]
[1766072282536,6.43847619,128.94,128.84,7.76136949]
[1766072282837,10.43767296,128.99,128.83,6.43847619]
[1766072282838,0.7,128.89,128.83,6.43847619]
[1766072283147,8.45681768,128.92,128.86,6.43847619]
[1766072283351,0.7,128.91,128.85,6.43847619]
[1766072283640,7.13847619,128.91,128.84,14.91847619]
[1766072283946,7.13847619,128.93,128.86,6.43847619]
[1766072284230,0.7,128.9,128.84,6.43847619]
[1766072284438,0.7,128.9,128.85,14.91847619]
[1766072284751,0.7,128.9,128.85,8.48]
[1766072285042,45.20718209,128.97,128.89,6.43847619]
[1766072285043,0.7,128.97,128.89,6.43847619]
[1766072285210,7.13847619,128.95,128.88,6.43847619]
[1766072285535,0.7,128.91,128.85,8.80994492]
[1766072285846,0.7,128.9,128.83,7.76198933]
[1766072286063,0.7,128.92,128.86,14.91847619]
[1766072286263,6.43847619,128.95,128.88,6.43847619]
[1766072286548,0.7,128.96,128.9,6.43847619]
[1766072286750,0.7,128.95,128.91,8.48]
[1766072287049,0.7,128.95,128.91,6.43847619]
[1766072287252,0.7,128.94,128.9,8.48]
[1766072287459,0.7,128.93,128.86,6.43847619]
[1766072287746,0.7,128.93,128.87,14.91847619]
[1766072288051,0.7,128.93,128.87,8.48]
[1766072288226,0.7,128.93,128.87,14.91847619]
[1766072288430,0.7,128.93,128.88,6.43847619]
[1766072288856,0.7,128.93,128.87,16.23937806]
[1766072289033,0.7,128.93,128.84,19.24761788]
[1766072289034,0.7,128.9,128.84,6.43847619]
[1766072289356,0.7,128.92,128.87,6.43847619]
[1766072289559,0.7,128.94,128.89,6.43847619]
[1766072289742,0.7,128.94,128.88,16.23912883]
[1766072290065,0.7,128.94,128.89,8.48]
[1766072290358,0.7,128.94,128.89,14.91847619]
[1766072290858,0.7,128.94,128.9,8.5]
[1766072291060,7.75559607,128.94,128.9,8.5]
[1766072291237,0.7,128.93,128.88,6.43847619]
[1766072291558,0.7,128.93,128.89,8.5]
[1766072291868,19.37383756,129.04,128.92,6.43847619]
[1766072292036,0.7,128.98,128.9,8.80994492]
[1766072292235,0.7,128.95,128.89,6.43847619]
[1766072292455,0.7,128.95,128.9,8.5]
[1766072292754,0.7,128.95,128.89,8.5]
[1766072292755,0.65,128.94,128.89,8.5]
[1766072293241,163.1,129.01,128.93,6.43847619]
[1766072293452,0.65,128.99,128.94,8.5]
[1766072293648,0.65,128.99,128.94,14.93847619]
[1766072293844,0.65,128.99,128.95,6.43847619]
[1766072294035,6.43847619,129.04,128.94,8.5]
[1766072294237,0.65,129.07,129.01,6.43847619]
[1766072294456,0.65,129.07,129.03,6.43847619]
[1766072294770,0.65,129.07,129.04,6.43847619]
[1766072294945,0.65,129.1,129.04,6.43847619]
[1766072295540,0.65,129.1,129.03,7.75011263]
[1766072295746,0.65,129.1,129.04,10.44968249]
[1766072295945,0.65,129.1,129.03,7.75011263]
[1766072296141,0.65,129.07,129.01,8.80994492]
[1766072296365,0.65,129.1,129.02,8.48]
[1766072296662,0.65,129.1,129.03,10.44968249]
[1766072296960,11.09968249,129.1,129.01,16.56112728]
[1766072297130,0.65,129.07,128.99,8.80994492]
[1766072297335,0.65,129.04,128.99,8.48]
[1766072297549,11.09968249,129.01,128.97,8.48]
[1766072297764,0.65,129.01,128.98,8.48]
[1766072297942,8.80994492,129.1,128.98,8.48]
[1766072297943,0.65,129.09,128.98,8.48]
[1766072298138,8.80994492,129.1,128.98,8.48]
[1766072298139,0.65,129.04,128.98,8.48]
[1766072298559,10.44968249,129.02,128.93,22.82587577]
[1766072298864,10.44968249,128.99,128.94,8.48]
[1766072299038,0.65,128.99,128.94,8.48]
[1766072299753,11.09968249,128.99,128.94,8.48]
[1766072299957,10.44968249,128.98,128.94,8.48]
[1766072300156,0.65,128.99,128.94,8.48]
[1766072300561,11.09968249,128.98,128.94,8.48]
[1766072301067,11.09968249,128.98,128.92,7.75670935]
[1766072301068,0.65,128.95,128.87,42.94847893]
[1766072301258,0.65,128.95,128.89,7.75837034]
[1766072301464,0.65,128.94,128.88,26.68880246]
[1766072301856,0.65,128.94,128.88,16.23911997]
[1766072302056,0.65,128.98,128.9,7.75741673]
[1766072302468,0.65,128.98,128.89,7.7581328]
[1766072302773,0.65,128.99,128.89,19.24761788]
[1766072302944,10.44968249,128.98,128.91,19.39336089]
[1766072303144,10.44968249,128.96,128.89,18.2080192]
[1766072303470,11.09968249,128.93,128.87,16.23970502]
[1766072303674,0.65,128.9,128.84,10.44968249]
[1766072303844,0.65,128.89,128.83,26.69144515]
[1766072304049,10.44968249,128.91,128.84,10.44968249]
[1766072304379,0.65,128.91,128.86,10.44968249]
[1766072304884,0.65,128.91,128.83,17.28994492]
[1766072304885,0.65,128.9,128.84,7.76117477]
[1766072305242,0.65,128.9,128.83,16.24197883]
[1766072305455,0.65,128.89,128.84,8.48]
[1766072305875,11.09968249,128.89,128.84,8.48]
[1766072306076,10.43767296,128.93,128.85,10.44968249]
[1766072306077,0.65,128.91,128.85,10.44968249]
[1766072306375,0.65,128.9,128.84,18.92968249]
[1766072306677,0.65,128.91,128.84,8.48]
[1766072306850,0.65,128.88,128.84,8.48]
[1766072307175,0.65,128.89,128.84,8.48]
[1766072307351,0.65,128.88,128.84,8.48]
[1766072307877,10.43767296,128.92,128.84,18.92968249]
[1766072308168,0.65,128.9,128.84,26.69114388]
[1766072308870,11.09968249,128.9,128.84,8.48]
[1766072309077,11.09968249,128.89,128.84,8.48]
[1766072309274,10.44968249,128.89,128.84,8.48]
[1766072309476,0.65,128.88,128.84,8.48]
[1766072309660,11.09968249,128.88,128.84,8.48]
[1766072309861,0.65,128.88,128.84,8.48]
[1766072310056,11.09968249,128.88,128.84,8.48]
[1766072310258,7.75792225,128.91,128.84,8.48]
[1766072310457,0.65,128.89,128.84,8.48]
[1766072310671,10.44968249,128.89,128.84,8.48]
[1766072310880,0.65,128.87,128.84,8.48]
[1766072311078,19.39125184,128.93,128.84,8.48]
[1766072311079,0.65,128.94,128.84,26.69108344]
[1766072311252,0.65,128.9,128.84,26.69108344]
[1766072311447,0.65,128.9,128.85,10.44968249]
[1766072311679,10.44968249,128.94,128.87,10.44968249]
[1766072311867,11.09968249,128.93,128.86,10.44968249]
[1766072312053,0.65,128.93,128.85,10.44968249]
[1766072312381,11.09968249,128.9,128.84,16.24140095]
[1766072312565,0.65,128.9,128.84,16.24140095]
[1766072312880,0.65,128.87,128.84,8.48]
[1766072313260,0.65,128.89,128.84,16.24146717]
[1766072313653,0.65,128.88,128.84,16.24146717]
[1766072314079,11.09968249,128.9,128.84,16.24146717]
[1766072314276,10.44968249,128.89,128.84,16.24146717]
[1766072314480,0.65,128.88,128.84,8.48]
[1766072314659,0.65,128.87,128.84,8.48]
[1766072314860,11.09968249,128.87,128.84,8.48]
[1766072315061,11.09968249,128.86,128.81,8.5]
[1766072315461,10.44968249,128.85,128.81,8.5]
[1766072315877,11.09968249,128.85,128.81,8.5]
[1766072316181,10.44968249,128.86,128.81,8.5]
[1766072316375,10.43767296,128.89,128.81,8.5]
[1766072316376,11.09968249,128.87,128.81,8.5]
[1766072316556,0.65,128.86,128.82,7.76275523]
[1766072316757,11.09968249,128.88,128.82,7.76275523]
[1766072316987,0.65,128.88,128.83,7.76198307]
[1766072317159,11.09968249,128.9,128.83,18.21166556]
[1766072317477,11.09968249,128.9,128.83,37.61708355]
[1766072317656,0.65,128.89,128.83,37.61708355]
[1766072317856,11.09968249,128.89,128.83,27.16740106]
[1766072318056,0.65,128.89,128.83,7.76198307]
[1766072318270,10.43767296,128.91,128.82,0.71]
[1766072318456,0.65,128.88,128.82,18.21226235]
[1766072318669,11.09968249,128.89,128.82,18.92226235]
[1766072319078,0.65,129.01,128.87,10.44968249]
[1766072319260,11.09968249,128.93,128.88,8.5]
[1766072319654,8.48,129.0,128.88,8.5]
[1766072319655,10.44968249,128.92,128.88,8.5]
[1766072319963,0.65,128.91,128.88,8.5]
[1766072320283,11.09968249,128.9,128.86,8.5]
[1766072320583,10.44968249,128.9,128.86,8.5]
[1766072320883,0.65,128.89,128.86,8.5]
[1766072321678,0.65,128.91,128.86,8.5]
[1766072321858,0.65,128.91,128.86,18.94968249]
[1766072322061,0.65,128.91,128.86,26.71000974]
[1766072322485,0.65,128.91,128.86,8.5]
[1766072322659,18.92968249,128.97,128.86,8.5]
[1766072322660,10.44968249,128.94,128.88,10.44968249]
[1766072322860,0.71,128.93,128.87,11.11968249]
[1766072323172,0.71,128.92,128.86,26.70985877]
[1766072323370,10.44968249,128.92,128.86,16.26017628]
[1766072323584,11.15968249,128.9,128.82,19.4061316]
[1766072323784,10.43767296,128.92,128.83,16.26205648]
[1766072323785,0.71,128.88,128.83,16.26205648]
[1766072323990,0.71,128.88,128.81,0.67]
[1766072323991,0.71,128.89,128.81,18.88296062]
[1766072324292,0.71,128.87,128.83,8.5]
[1766072324467,0.71,128.83,128.78,0.2]
[1766072324675,0.71,128.81,128.78,0.2]
[1766072324882,11.15968249,128.81,128.78,0.2]
[1766072325083,11.15968249,128.81,128.7,14.7063988]
[1766072325084,0.71,128.78,128.71,23.69127696]
[1766072325285,11.15968249,128.78,128.72,10.44968249]
[1766072325486,0.71,128.81,128.74,0.67]
[1766072325689,11.15968249,128.81,128.75,18.94968249]
[1766072325995,18.2000226,128.83,128.75,8.5]
[1766072325996,0.71,128.83,128.75,8.5]
[1766072326294,11.15968249,128.82,128.75,8.5]
[1766072326470,11.15968249,128.82,128.75,18.94968249]
[1766072326673,11.15968249,128.82,128.76,10.44968249]
[1766072326984,11.15968249,128.82,128.77,10.44968249]
[1766072326985,0.71,128.82,128.77,10.44968249]
[1766072327186,20.88735545,128.85,128.79,0.67]
[1766072327401,21.59735545,128.85,128.79,9.17]
[1766072327707,11.15968249,128.84,128.79,8.5]
[1766072327997,0.71,128.83,128.79,8.5]
[1766072328369,10.44968249,128.83,128.79,8.5]
[1766072328576,0.71,128.81,128.76,8.5]
[1766072329503,0.71,128.81,128.76,18.94968249]
[1766072329682,0.71,128.83,128.77,10.44968249]
[1766072330693,0.71,128.83,128.78,10.44968249]
[1766072330906,0.71,128.83,128.76,36.3522572]
[1766072331076,0.71,128.83,128.77,10.44968249]
[1766072331272,0.71,128.83,128.77,10.49370016]
[1766072331495,0.71,128.84,128.78,11.16370016]
[1766072331691,0.71,128.84,128.76,35.6822572]
[1766072331692,0.71,128.91,128.82,10.49370016]
[1766072331902,0.71,128.91,128.83,8.5]
[1766072331903,10.49370016,128.88,128.83,8.5]
[1766072332176,27.1507253,128.91,128.83,10.49370016]
[1766072332380,11.20370016,128.89,128.83,10.49370016]
[1766072332582,10.49370016,128.89,128.83,10.49370016]
[1766072332801,0.71,128.88,128.83,10.49370016]
[1766072333306,7.75494377,128.95,128.85,10.49370016]
[1766072333511,0.71,128.94,128.86,19.66370016]
[1766072333697,0.71,128.92,128.86,19.66370016]
[1766072333879,0.71,128.9,128.83,8.43190402]
[1766072334081,0.71,128.89,128.84,18.99370016]
[1766072334305,27.14230321,128.95,128.84,18.99370016]
[1766072334306,0.71,128.91,128.86,10.49370016]
[1766072334486,0.71,128.91,128.86,8.5]
[1766072334684,11.20370016,128.91,128.86,8.5]
[1766072335007,0.71,128.91,128.86,18.99370016]
[1766072335194,0.71,128.91,128.86,8.5]
[1766072335505,0.71,128.91,128.87,8.5]
[1766072336132,0.71,128.94,128.87,8.5]
[1766072336410,11.20370016,128.91,128.83,0.67]
[1766072336717,7.75568353,128.94,128.84,18.99370016]
[1766072336718,0.71,128.9,128.84,18.99370016]
[1766072337011,0.71,128.9,128.85,8.5]
[1766072337438,0.71,128.88,128.85,8.5]
[1766072337737,0.71,128.88,128.83,8.5]
[1766072337738,11.20370016,128.88,128.83,8.5]
[1766072337883,0.71,128.87,128.79,9.47994492]
[1766072338084,0.71,128.85,128.8,18.2576529]
[1766072338310,0.71,128.89,128.81,18.25701996]
[1766072338515,0.71,128.87,128.81,18.25701996]
[1766072339115,0.71,128.86,128.8,10.49370016]
[1766072339282,0.71,128.85,128.79,26.75807006]
[1766072339903,0.71,128.85,128.8,8.5]
[1766072340284,0.71,128.87,128.82,10.49370016]
[1766072340482,0.71,128.87,128.81,11.16370016]
[1766072340700,11.15370016,128.86,128.8,8.5]
[1766072340909,10.43767296,128.91,128.82,0.7]
[1766072341112,10.49370016,128.97,128.82,0.7]
[1766072341113,0.66,128.97,128.89,10.49370016]
[1766072341423,0.1,129.03,128.95,0.7]
[1766072341424,11.15370016,129.02,128.95,0.7]
[1766072341616,10.49370016,129.02,128.96,8.5]
[1766072341914,10.53767296,129.03,128.91,35.96067022]
[1766072341915,0.66,128.96,128.91,8.5]
[1766072342122,10.49370016,128.93,128.88,0.7]
[1766072342289,0.66,128.94,128.88,9.2]
[1766072342488,11.15370016,128.9,128.85,8.5]
[1766072342817,0.66,128.9,128.85,8.5]
[1766072343191,27.14861929,128.92,128.8,0.7]
[1766072343393,10.49370016,128.87,128.81,18.99370016]
[1766072343587,11.15370016,128.87,128.81,8.5]
[1766072343787,11.15370016,128.87,128.81,18.99370016]
[1766072343788,0.66,128.87,128.81,18.99370016]
[1766072344087,0.66,128.87,128.82,10.49370016]
[1766072344286,21.59137312,128.89,128.82,0.7]
[1766072344488,11.09767296,128.89,128.82,11.19370016]
[1766072344705,11.15370016,128.88,128.81,18.99370016]
[1766072344915,0.66,128.88,128.81,9.2]
[1766072345119,10.49370016,128.92,128.86,10.49370016]
[1766072345301,11.15370016,128.95,128.88,10.49370016]
[1766072345501,10.49370016,128.95,128.88,10.49370016]
[1766072345701,10.49370016,128.94,128.87,8.5]
[1766072345901,10.49370016,128.95,128.88,10.49370016]
[1766072346096,10.49370016,128.95,128.87,16.9593084]
[1766072346097,10.49370016,128.94,128.87,9.2]
[1766072346311,0.66,128.93,128.88,10.49370016]
[1766072346496,11.15370016,128.92,128.87,8.5]
[1766072346695,0.66,128.92,128.87,8.5]
[1766072346897,11.15370016,128.92,128.87,8.5]
[1766072347092,0.66,128.91,128.81,0.7]
[1766072347320,10.49370016,128.89,128.83,8.46181059]
[1766072347818,11.15370016,128.88,128.82,8.5]
[1766072348202,47.53455507,128.96,128.82,8.5]
[1766072348203,0.99999999,129.02,128.86,10.49370016]
[1766072348400,10.49370016,128.93,128.87,8.5]
[1766072348603,11.15370016,128.92,128.87,8.5]
[1766072348800,27.13388634,128.99,128.88,11.19370016]
[1766072348801,0.66,128.95,128.88,11.19370016]
[1766072349014,0.66,128.95,128.89,10.49370016]
[1766072349209,0.66,128.95,128.88,18.95254079]
[1766072349413,0.66,128.95,128.88,8.45884063]
[1766072349600,11.15370016,128.95,128.88,18.95254079]
[1766072349803,0.66,128.95,128.88,11.19370016]
[1766072350003,10.49370016,128.94,128.88,0.7]
[1766072350298,11.15370016,128.93,128.88,8.5]
[1766072350503,0.66,128.93,128.87,11.19370016]
[1766072350705,0.66,128.93,128.88,8.5]
[1766072351211,11.15370016,128.95,128.88,26.75276793]
[1766072351519,11.15370016,128.95,128.88,16.25906777]
[1766072351724,0.66,128.95,128.89,11.19370016]
[1766072352018,0.66,128.95,128.88,16.25906777]
[1766072352019,10.49370016,128.95,128.88,18.99370016]
[1766072352220,10.49370016,128.95,128.88,19.69370016]
[1766072352401,0.66,128.96,128.9,11.19370016]
[1766072352825,10.49370016,128.98,128.88,35.65702231]
[1766072352826,0.7,128.98,128.93,10.49370016]
[1766072352999,19.37525306,129.04,128.93,10.49370016]
[1766072353000,11.19370016,129.0,128.94,8.5]
[1766072353502,19.37525306,129.04,128.94,8.5]
[1766072353503,10.49370016,129.02,128.95,11.20370016]
[1766072353698,0.1,129.03,128.98,0.71]
[1766072353901,7.84751967,129.08,128.98,0.71]
[1766072353902,0.1,129.08,128.99,8.5]
[1766072354127,0.7,129.13,129.02,10.43767296]
[1766072354440,0.7,129.19,129.05,0.71]
[1766072354723,0.7,129.16,129.07,10.49370016]
[1766072354905,10.49370016,129.14,129.07,11.20370016]
[1766072355111,0.7,129.15,129.08,8.5]
[1766072355305,0.7,129.15,129.07,0.71]
[1766072355503,10.49370016,129.12,129.07,8.5]
[1766072355718,0.7,129.12,129.07,8.5]
[1766072356101,10.43767296,129.15,129.07,8.5]
[1766072356102,10.49370016,129.11,129.07,8.5]
[1766072356305,11.19370016,129.08,129.01,10.49370016]
[1766072356609,10.43767296,129.12,129.0,8.5]
[1766072356610,11.19370016,129.09,129.02,18.95434654]
[1766072356802,0.7,129.05,129.01,8.5]
[1766072357004,11.19370016,129.05,129.01,8.5]
[1766072357199,0.7,129.05,129.0,10.49370016]
[1766072357399,0.7,129.05,128.94,23.07801023]
[1766072357400,6.43421888,129.07,129.01,8.5]
[1766072357622,10.43767296,129.1,129.02,6.43421888]
[1766072357807,0.7,129.1,129.03,6.43421888]
[1766072358004,0.7,129.1,129.04,8.48]
[1766072358404,0.7,129.1,129.04,14.91421888]
[1766072358602,0.7,129.1,129.04,8.48]
[1766072358810,6.43421888,129.07,129.04,8.48]
[1766072359006,0.7,129.1,129.02,8.48]
[1766072359223,6.43421888,129.08,129.02,8.48]
[1766072359404,18.18374438,129.1,129.02,8.48]
[1766072359716,6.43421888,129.08,129.02,8.48]
[1766072359920,0.7,129.08,129.02,8.48]
[1766072360117,0.7,129.08,129.01,6.43421888]
[1766072360305,7.13421888,129.08,129.02,8.48]
[1766072360814,0.7,129.19,129.07,6.43421888]
[1766072361130,6.43421888,129.13,129.08,8.48]
[1766072361338,7.13421888,129.13,129.08,8.48]
[1766072361530,7.74206234,129.17,129.08,16.22706415]
[1766072361732,0.7,129.16,129.08,7.74706415]
[1766072361946,6.43421888,129.13,129.07,8.48]
[1766072362306,0.7,129.14,129.07,8.48]
[1766072362514,0.7,129.14,129.07,16.2276447]
[1766072362725,0.7,129.14,129.08,7.74703203]
[1766072362925,0.7,129.11,129.02,0.71]
[1766072363233,0.7,129.13,129.06,7.74815948]
[1766072363413,6.43421888,129.12,129.05,0.71]
[1766072363613,6.43421888,129.11,129.05,0.71]
[1766072363830,7.13421888,129.12,129.06,6.43421888]
[1766072364221,11.13767296,129.14,129.07,8.48]
[1766072364426,0.7,129.12,129.07,8.48]
[1766072364615,6.43421888,129.13,129.07,8.48]
[1766072364816,7.13421888,129.13,129.07,8.48]
[1766072365026,6.43421888,129.12,129.07,8.48]
[1766072365320,7.13421888,129.11,129.07,8.48]
[1766072365523,6.43421888,129.12,129.07,8.48]
[1766072365841,6.43421888,129.11,129.07,8.48]
[1766072366421,7.13421888,129.12,129.07,8.48]
[1766072366927,0.7,129.12,129.07,8.48]
[1766072367239,0.7,129.11,129.05,8.48]
[1766072368014,0.7,129.11,129.05,14.91421888]
[1766072368245,0.7,129.1,129.05,8.48]
[1766072368624,7.13421888,129.1,129.05,8.48]
[1766072369127,0.7,129.09,129.05,8.48]
[1766072369950,0.7,129.08,129.03,7.749703]
[1766072370541,0.7,129.08,129.04,7.74941664]
[1766072370718,0.7,129.08,129.03,6.43421888]
[1766072370922,0.7,129.08,129.04,7.74938015]
[1766072371631,0.7,129.08,129.02,7.75050492]
[1766072371832,0.7,129.08,129.0,14.89579275]
[1766072371833,6.43421888,129.07,129.0,14.89579275]
[1766072372018,6.43421888,129.07,129.03,8.48]
[1766072372352,0.7,129.08,129.03,8.48]
[1766072372543,6.43421888,129.08,129.03,8.48]
[1766072372749,6.43421888,129.1,129.04,0.71]
[1766072373123,7.13421888,129.1,129.04,0.71]
[1766072373322,0.7,129.1,129.04,7.14421888]
[1766072373531,0.7,129.1,129.04,0.71]
[1766072373846,7.13421888,129.1,129.04,0.71]
[1766072374024,7.13421888,129.1,129.05,8.48]
[1766072374225,7.13421888,129.08,129.05,8.48]
[1766072374632,7.13421888,129.08,129.03,8.48]
[1766072374633,6.43421888,129.07,129.03,8.48]
[1766072374831,6.43421888,129.07,128.99,8.80994492]
[1766072374832,0.7,129.06,128.99,8.80994492]
[1766072375032,7.13421888,129.03,128.97,7.14421888]
[1766072375345,6.43421888,129.02,128.98,8.48]
[1766072375547,10.43767296,129.05,128.94,7.75531215]
[1766072375844,10.43767296,129.05,128.95,16.23483549]
[1766072375845,0.7,129.01,128.95,16.23483549]
[1766072376145,6.43421888,129.02,128.95,22.66905437]
[1766072376331,7.13421888,129.04,128.97,6.43421888]
[1766072376642,7.13421888,129.04,128.98,0.71]
[1766072376822,7.13421888,129.03,128.96,7.14421888]
[1766072377018,7.13421888,129.03,128.97,6.43421888]
[1766072377222,6.40421888,129.02,128.98,8.48]
[1766072377439,5.90421888,129.02,128.98,8.48]
[1766072377633,6.43421888,129.02,128.98,8.48]
[1766072377849,0.7,129.02,128.94,14.18958986]
[1766072378148,7.13421888,129.01,128.95,16.23490404]
[1766072378349,0.7,129.01,128.95,16.23490404]
[1766072378650,7.13421888,129.0,128.95,16.23487069]
[1766072378944,0.7,129.0,128.95,16.23487069]
[1766072379140,6.43421888,129.01,128.95,8.48]
[1766072379345,10.43767296,129.03,128.95,14.91421888]
[1766072379529,0.7,129.01,128.97,7.7536178]
[1766072379729,0.7,129.03,128.98,7.75292036]
[1766072380046,0.7,129.02,128.99,8.48]
[1766072381245,0.7,129.02,128.99,16.2325301]
[1766072381552,0.7,129.04,128.99,16.2325301]
[1766072383157,7.10421888,129.03,128.99,8.48]
[1766072383755,0.67,129.03,128.99,8.48]
[1766072384472,7.10421888,129.03,129.0,8.48]
[1766072385336,0.67,129.03,129.0,8.48]
[1766072385538,6.43421888,129.05,129.0,8.48]
[1766072385740,38.71928492,129.14,129.02,6.43421888]
[1766072385741,0.67,129.12,129.02,6.43421888]
[1766072385944,0.67,129.08,129.02,6.43421888]
[1766072386142,10.43767296,129.11,129.02,7.75067935]
[1766072386328,6.43421888,129.07,129.0,34.29319609]
[1766072386530,0.67,129.07,129.01,11.87688852]
[1766072386751,0.67,129.07,129.01,6.43421888]
[1766072386938,0.67,129.05,129.02,8.48]
[1766072387735,0.67,129.07,129.02,16.23072817]
[1766072387958,6.43421888,129.09,129.02,42.04178784]
[1766072388157,0.67,129.08,129.02,35.60756896]
[1766072388353,0.67,129.08,129.02,42.04178784]
[1766072388657,0.67,129.06,129.03,8.48]
[1766072390241,7.10421888,129.06,129.03,8.48]
[1766072390965,0.67,129.06,129.03,8.48]
[1766072391636,0.67,129.06,129.03,16.23006853]
[1766072392055,10.43767296,129.09,129.03,23.38428741]
[1766072392056,0.67,129.09,129.03,23.38428741]
[1766072392260,0.67,129.09,129.03,16.95006853]
[1766072392261,7.10421888,129.09,129.03,16.95006853]
[1766072392449,0.67,129.08,129.03,16.23006853]
[1766072393333,6.43421888,129.05,128.99,7.75229241]
[1766072393538,0.67,129.04,129.0,21.71416426]
[1766072393756,0.67,129.04,129.01,5.48255275]
[1766072393939,0.67,129.04,129.0,16.23158855]
[1766072394550,0.67,129.04,129.01,5.48714696]
[1766072394946,7.10421888,129.08,129.01,12.64136584]
[1766072395168,7.10421888,129.08,129.02,5.48714696]
[1766072395367,7.10421888,129.06,129.02,5.48714696]
[1766072395664,6.43421888,129.06,129.0,16.23158855]
[1766072395860,6.43421888,129.05,129.01,5.49497807]
[1766072396052,7.10421888,129.06,129.01,5.49497807]
[1766072396260,0.67,129.06,129.01,13.24585776]
[1766072396443,7.10421888,129.06,129.02,5.49497807]
[1766072396649,7.10421888,129.06,129.0,16.95175034]
[1766072396864,7.10421888,129.06,129.01,5.50344859]
[1766072397253,6.43421888,129.05,129.02,5.50344859]
[1766072397473,0.67,129.06,129.0,16.95175034]
[1766072397678,6.43421888,129.05,129.01,5.51164971]
[1766072397880,6.43421888,129.05,129.02,5.51164971]
[1766072398060,7.10421888,129.06,129.02,8.48]
[1766072398265,0.67,129.05,129.02,8.48]
[1766072398465,6.43421888,129.05,129.02,8.48]
[1766072398663,7.10421888,129.04,129.02,7.76]
[1766072399189,6.43421888,129.03,128.99,8.48]
[1766072399486,0.67,129.03,128.99,8.48]
[1766072399978,7.10421888,129.03,128.99,8.48]
[1766072400200,6.43421888,129.02,128.99,8.48]
[1766072400346,6.43421888,129.04,128.99,8.48]
[1766072400548,0.65,129.05,128.99,6.43421888]
[1766072400876,7.08421888,129.05,129.0,6.23706311]
[1766072401048,0.65,129.07,129.01,8.48]
[1766072401248,7.74638554,129.1,129.02,6.23352872]
[1766072401249,6.43421888,129.08,129.02,6.23352872]
[1766072401478,6.43421888,129.08,129.03,5.51352872]
[1766072401479,6.43421888,129.07,129.03,5.51352872]
[1766072401680,0.65,129.06,129.0,8.47188907]
[1766072401859,27.111219,129.1,129.01,4.79240427]
[1766072401860,6.43421888,129.03,129.01,4.79240427]
[1766072402070,6.43421888,129.02,128.98,8.48]
[1766072402278,6.43421888,129.01,128.98,8.48]
[1766072402453,6.43983245,129.01,128.98,8.48]
[1766072402653,6.43983245,129.02,128.98,8.48]
[1766072402872,6.43983245,129.03,128.98,16.23313167]
[1766072403477,7.74889177,129.06,128.98,16.23313167]
[1766072403777,6.43983245,129.04,128.99,0.72]
[1766072403981,6.43983245,129.03,128.98,16.23313167]
[1766072404153,18.18564167,129.07,128.99,0.72]
[1766072404354,6.43983245,129.05,129.0,8.47143114]
[1766072404570,6.43983245,129.07,129.01,0.72]
[1766072404786,6.43983245,129.06,129.02,8.48]
[1766072404969,7.74689966,129.09,129.02,8.48]
[1766072405160,6.43983245,129.07,129.02,9.2]
[1766072405369,27.11087672,129.1,129.02,9.2]
[1766072405574,6.43983245,129.05,129.02,8.48]
[1766072405878,6.43983245,129.05,129.01,8.48]
[1766072406078,6.43983245,129.04,128.97,6.43983245]
[1766072406268,6.43983245,129.03,128.98,8.48]
[1766072406463,10.43767296,129.07,128.98,9.2]